fUSD/lending_fUSD_20250923
["ID","MTS","AMOUNT","RATE_DAILY","PERIOD"]
[387264841,1758667974511,-65.83559252,0.00019899,2]
[387264842,1758667974538,-257.61163483,0.00019899,2]
[387264843,1758667979051,-166.74829774,0.00019899,2]
[387264844,1758667979077,-183.67531708,0.00019899,2]
[387264850,1758668073078,500.0,0.00013699,2]
[387264851,1758668205970,-167.878,0.00019899,2]
[387264852,1758668302651,150.2,0.00011424,2]
[387264861,1758669032107,-167.878,0.00018667,3]
[387264862,1758669032118,-1479.6912,0.000198,2]
[387264863,1758669032128,-327.71544043,0.000198,2]
[387264864,1758669032138,-334.1595,0.00019863,2]
[387264865,1758669032147,-772.78196395,0.00019888,2]
[387264866,1758669032157,-188.0,0.00019896,2]
[387264867,1758669032167,-271.0,0.00019896,2]
[387264868,1758669032177,-300.0,0.00019896,2]
[387264869,1758669032187,-1200.0,0.00019896,2]
[387264870,1758669032196,-266.69738281,0.00019896,2]
[387264871,1758669032206,-563.36098972,0.00019896,2]
[387264872,1758669032215,-225.30182527,0.00019896,2]
[387264873,1758669032225,-500.0,0.00019896,2]
[387264874,1758669032235,-500.0,0.00019896,2]
[387264875,1758669032244,-500.0,0.00019896,2]
[387264876,1758669032254,-500.0,0.00019896,2]
[387264877,1758669032263,-500.0,0.00019896,2]
[387264878,1758669032273,-500.0,0.00019896,2]
[387264879,1758669032283,-500.0,0.00019896,2]
[387264880,1758669032294,-500.0,0.00019896,2]
[387264881,1758669032304,-24351.1775,0.000199,2]
[387264882,1758669032314,-1000.0,0.000199,2]
[387264883,1758669032323,-1000.0,0.000199,2]
[387264884,1758669032333,-2500.0,0.000199,2]
[387264885,1758669032343,-500.0,0.00020243,2]
[387264886,1758669032353,-3655.1782712,0.00021307,2]
[387264887,1758669032362,-3039.7016477,0.00021307,2]
[387264888,1758669032371,-516.64379166,0.00021456,2]
[387264889,1758669032381,-3327.3351851,0.00021468,2]
[387264890,1758669032392,-500.0,0.00021644,2]
[387264891,1758669032402,-712.30857049,0.00021644,2]
[387264893,1758669032412,-420.0,0.00021667,2]
[387264896,1758669032422,-916.0,0.00021771,2]
[387264897,1758669032431,-1568.15,0.00021957,2]
[387264898,1758669032442,-165.0,0.00022,2]
[387264899,1758669032452,-580.62,0.00022,2]
[387264900,1758669032462,-165.0,0.00022192,7]
[387264902,1758669032471,-2000.0,0.000222,2]
[387264904,1758669032482,-150.0,0.00022389,4]
[387264912,1758669032900,-150.0,0.00022389,4]
[387264913,1758669032950,-150.0,0.00022389,4]
[387264914,1758669032960,-150.0,0.00022389,4]
[387264915,1758669032969,-150.0,0.00022389,4]
[387264916,1758669032979,-150.0,0.00022389,4]
[387264917,1758669032989,-150.0,0.00022389,4]
[387264918,1758669032999,-262.91827366,0.00022389,4]
[387264919,1758669033009,-150.0,0.00022389,4]
[387264920,1758669033019,-150.0,0.00022389,4]
[387264921,1758669033029,-150.0,0.00022389,4]
[387264922,1758669033039,-150.0,0.00022389,4]
[387264923,1758669033050,-250.0,0.00022422,2]
[387264924,1758669033060,-256.62,0.0002244,2]
[387264925,1758669033077,-9815.55,0.00022467,2]
[387264926,1758669033087,-150.0,0.00022468,7]
[387264927,1758669033098,-925.89,0.00022512,7]
[387264928,1758669033108,-1000.0,0.0002256,2]
[387264929,1758669033119,-165.25,0.00022617,2]
[387264930,1758669033129,-5000.0,0.00022626,2]
[387264931,1758669033139,-1286.31,0.00022736,2]
[387264932,1758669033150,-150.0,0.00022744,4]
[387264933,1758669033160,-200.0,0.00022812,2]
[387264934,1758669033170,-150.2,0.00022848,2]
[387264935,1758669033181,-168.0,0.00022883,2]
[387264936,1758669033191,-150.0,0.00022887,4]
[387264937,1758669033201,-1171.82,0.00023,2]
[387264938,1758669033212,-150.0,0.00023011,4]
[387264939,1758669033222,-165.0,0.00023014,7]
[387264940,1758669033232,-162.90989233,0.0002305,2]
[387264941,1758669033243,-558.14375536,0.0002305,2]
[387264942,1758669033253,-35389.61,0.00023051,2]
[387264943,1758669033263,-150.0,0.000231,4]
[387264944,1758669033274,-168.0,0.00023174,2]
[387264945,1758669033284,-168.3,0.00023188,2]
[387264946,1758669033293,-150.0,0.00023218,4]
[387264947,1758669033307,-150.0,0.00023218,4]
[387264948,1758669033317,-4640.4,0.00023287,2]
[387264949,1758669033328,-168.0,0.0002329,2]
[387264950,1758669033340,-27322.0,0.00023325,2]
[387264951,1758669033350,-5000.0,0.00023353,2]
[387264952,1758669033361,-150.0,0.00023384,4]
[387264953,1758669033371,-150.0,0.00023455,4]
[387264954,1758669033381,-663.57490602,0.00023533,2]
[387264955,1758669033392,-284.0,0.00023577,2]
[387264956,1758669033402,-587.0,0.00023595,2]
[387264957,1758669033412,-346.92554585,0.00023608,2]
[387264958,1758669033422,-625.26402641,0.00023608,2]
[387264959,1758669033432,-180.65,0.00023612,2]
[387264960,1758669033442,-150.0,0.00023622,2]
[387264961,1758669033452,-150.0,0.00023622,2]
[387264962,1758669033462,-150.0,0.00023622,2]
[387264963,1758669033472,-150.0,0.00023622,2]
[387264964,1758669033482,-73882.76696159,0.00023622,2]
[387264965,1758669033492,-1486.06,0.00023625,2]
[387264966,1758669033503,-168.0,0.00023633,2]
[387264967,1758669033513,-150.0,0.00023633,4]
[387264968,1758669033523,-150.0,0.00023633,4]
[387264969,1758669033537,-500.0,0.00023635,2]
[387264970,1758669033547,-150.0,0.00023635,2]
[387264971,1758669033557,-150.0,0.00023635,2]
[387264972,1758669033568,-150.0,0.00023635,2]
[387264973,1758669033579,-500.0,0.00023635,2]
[387264974,1758669033589,-500.0,0.00023635,2]
[387264975,1758669033600,-500.0,0.00023635,2]
[387264976,1758669033611,-500.0,0.00023635,2]
[387264977,1758669033621,-1080.0,0.00023635,2]
[387264978,1758669033631,-500.0,0.00023635,2]
[387264979,1758669033641,-258.0114094,0.00023635,2]
[387264980,1758669033651,-500.0,0.00023635,2]
[387264981,1758669033661,-500.0,0.00023635,2]
[387264982,1758669033671,-500.0,0.00023635,2]
[387264983,1758669033681,-150.0,0.00023635,2]
[387264984,1758669033691,-545.0,0.00023635,2]
[387264985,1758669033701,-500.0,0.00023635,2]
[387264986,1758669033711,-500.0,0.00023635,2]
[387264987,1758669033721,-150.0,0.00023635,2]
[387264988,1758669033731,-500.0,0.00023635,2]
[387264989,1758669033741,-150.0,0.00023635,2]
[387264990,1758669033751,-150.0,0.00023635,2]
[387264991,1758669033763,-500.0,0.00023635,2]
[387264992,1758669033773,-150.0,0.00023635,2]
[387264993,1758669033783,-500.0,0.00023635,2]
[387264994,1758669033793,-150.0,0.00023635,2]
[387264995,1758669033803,-545.93183836,0.00023635,2]
[387264996,1758669033818,-150.06816164,0.00023635,2]
[387264997,1758669033829,-500.0,0.00023635,2]
[387264998,1758669033840,-580.62,0.00023635,2]
[387264999,1758669033850,-168.0,0.00023646,2]
[387265000,1758669033860,-168.0,0.0002373,2]
[387265001,1758669033871,-168.0,0.00023804,2]
[387265002,1758669033882,-150.0,0.00023811,4]
[387265003,1758669033892,-395.9,0.00023835,2]
[387265004,1758669033902,-853.39370512,0.00023869,2]
[387265005,1758669033912,-150.0,0.00023882,4]
[387265006,1758669033922,-150.0,0.00023896,2]
[387265007,1758669033936,-150.0,0.00023896,2]
[387265008,1758669033945,-150.0,0.00023896,2]
[387265009,1758669033955,-150.0,0.00023896,2]
[387265010,1758669033965,-836.0,0.000239,2]
[387265011,1758669033975,-500.0,0.00023909,2]
[387265012,1758669033985,-150.0,0.00023909,2]
[387265013,1758669033995,-150.0,0.00023909,2]
[387265014,1758669034005,-150.0,0.00023909,2]
[387265015,1758669034017,-500.0,0.00023909,2]
[387265016,1758669034027,-500.0,0.00023909,2]
[387265017,1758669034037,-500.0,0.00023909,2]
[387265018,1758669034048,-500.0,0.00023909,2]
[387265019,1758669034059,-1080.0,0.00023909,2]
[387265020,1758669034069,-500.0,0.00023909,2]
[387265021,1758669034078,-500.0,0.00023909,2]
[387265022,1758669034088,-500.0,0.00023909,2]
[387265023,1758669034098,-500.0,0.00023909,2]
[387265024,1758669034108,-150.0,0.00023909,2]
[387265025,1758669034118,-58.28630895,0.00023909,2]
[387265026,1758669034130,-486.71369105,0.00023909,2]
[387265027,1758669034140,-500.0,0.00023909,2]
[387265028,1758669034150,-500.0,0.00023909,2]
[387265029,1758669034160,-200.0,0.00023909,2]
[387265030,1758669034170,-500.0,0.00023909,2]
[387265031,1758669034180,-150.0,0.00023909,2]
[387265032,1758669034190,-500.0,0.00023909,2]
[387265033,1758669034200,-500.0,0.00023909,2]
[387265034,1758669034210,-696.0,0.00023909,2]
[387265035,1758669034230,-500.0,0.00023909,2]
[387265036,1758669034241,-150.93403913,0.00023985,2]
[387265037,1758669034252,-150.0,0.00024047,4]
[387265038,1758669034262,-150.0,0.00024047,4]
[387265039,1758669034273,-284.0,0.00024085,2]
[387265040,1758669034283,-284.0,0.00024152,2]
[387265041,1758669034293,-169.0,0.00024164,7]
[387265042,1758669034304,-150.0,0.00024166,4]
[387265043,1758669034314,-200.0,0.0002417,2]
[387265044,1758669034325,-150.0,0.0002417,2]
[387265045,1758669034335,-200.0,0.0002417,2]
[387265046,1758669034346,-150.0,0.0002417,2]
[387265047,1758669034356,-500.0,0.00024183,2]
[387265048,1758669034366,-150.0,0.00024183,2]
[387265049,1758669034377,-150.0,0.00024183,2]
[387265050,1758669034387,-500.0,0.00024183,2]
[387265051,1758669034398,-500.0,0.00024183,2]
[387265052,1758669034408,-500.0,0.00024183,2]
[387265053,1758669034419,-608.80195176,0.00024183,2]
[387265054,1758669034430,-1080.0,0.00024183,2]
[387265055,1758669034441,-400.0,0.00024183,2]
[387265056,1758669034451,-500.0,0.00024183,2]
[387265057,1758669034461,-500.0,0.00024183,2]
[387265058,1758669034471,-500.0,0.00024183,2]
[387265059,1758669034482,-150.0,0.00024183,2]
[387265060,1758669034492,-545.0,0.00024183,2]
[387265061,1758669034502,-398.90499701,0.00024183,2]
[387265062,1758669034512,-500.0,0.00024183,2]
[387265063,1758669034523,-600.0,0.00024183,2]
[387265064,1758669034533,-150.0,0.00024183,2]
[387265065,1758669034542,-500.0,0.00024183,2]
[387265066,1758669034552,-500.0,0.00024183,2]
[387265067,1758669034562,-696.0,0.00024183,2]
[387265068,1758669034572,-500.0,0.00024183,2]
[387265069,1758669034582,-853.39370512,0.00024204,2]
[387265070,1758669034592,-150.0,0.00024255,4]
[387265071,1758669034602,-292.24024141,0.00024306,2]
[387265072,1758669034612,-292.24024141,0.00024309,2]
[387265073,1758669034626,-161.90660939,0.00024311,2]
[387265074,1758669034637,-172.03993169,0.00024311,2]
[387265075,1758669034647,-292.24024141,0.00024317,2]
[387265076,1758669034658,-172.03993169,0.0002432,2]
[387265077,1758669034668,-292.24024141,0.00024325,2]
[387265078,1758669034679,-292.24024141,0.00024325,2]
[387265079,1758669034689,-292.24024141,0.00024328,2]
[387265080,1758669034699,-10767.3625511,0.0002433,2]
[387265081,1758669034713,-1973.79151702,0.0002433,2]
[387265082,1758669034857,-500.0,0.00019896,2]
[387265083,1758669034868,-500.0,0.00019896,2]
[387265084,1758669034879,-70.64,0.00019896,2]
[387265090,1758669038189,-429.36,0.00019896,2]
[387265091,1758669038198,-500.0,0.00019896,2]
[387265092,1758669038208,-500.0,0.00019896,2]
[387265093,1758669038217,-500.0,0.00019896,2]
[387265094,1758669038228,-500.0,0.00019896,2]
[387265095,1758669038237,-500.0,0.00019896,2]
[387265096,1758669038246,-500.0,0.00019896,2]
[387265097,1758669038255,-500.0,0.00019896,2]
[387265098,1758669038264,-500.0,0.00019896,2]
[387265099,1758669038274,-500.0,0.00019896,2]
[387265100,1758669038283,-500.0,0.00019896,2]
[387265101,1758669038292,-500.0,0.00019896,2]
[387265102,1758669038301,-500.0,0.00019896,2]
[387265103,1758669038310,-500.0,0.00019896,2]
[387265104,1758669038319,-500.0,0.00019896,2]
[387265105,1758669038329,-500.0,0.00019896,2]
[387265106,1758669038339,-500.0,0.00019896,2]
[387265107,1758669038348,-500.0,0.00019896,2]
[387265108,1758669038357,-500.0,0.00019896,2]
[387265109,1758669038366,-500.0,0.00019896,2]
[387265110,1758669038375,-355.97052318,0.00019896,2]
[387265243,1758669040019,-144.02947682,0.00019896,2]
[387265246,1758669040030,-116863.89018009,0.0002433,2]
[387265248,1758669040040,-292.24024141,0.00024333,2]
[387265250,1758669040049,-292.24024141,0.00024334,2]
[387265252,1758669040059,-292.24024141,0.00024339,2]
[387265254,1758669040068,-160.81930305,0.00024339,2]
[387265256,1758669040078,-129605.04424821,0.00024341,2]
[387265257,1758669040088,-292.24024141,0.00024343,2]
[387265259,1758669040097,-26903.46221276,0.00024347,2]
[387265261,1758669040106,-292.24024141,0.00024359,2]
[387265263,1758669040116,-129605.04424821,0.00024362,2]
[387265265,1758669040125,-160.81930305,0.00024363,2]
[387265266,1758669040135,-160.81930305,0.00024363,2]
[387265268,1758669040144,-292.24024141,0.00024368,2]
[387265270,1758669040154,-26903.46221276,0.00024372,2]
[387265272,1758669040164,-172.03993169,0.00024373,2]
[387265274,1758669040174,-292.24024141,0.00024374,2]
[387265276,1758669040184,-292.24024141,0.00024376,2]
[387265278,1758669040194,-150.0,0.00024379,4]
[387265280,1758669040204,-172.03993169,0.00024381,2]
[387265282,1758669040214,-26903.46221276,0.00024384,2]
[387265284,1758669040223,-292.24024141,0.00024389,2]
[387265285,1758669040233,-292.24024141,0.00024407,2]
[387265287,1758669040243,-292.24024141,0.00024412,2]
[387265289,1758669040253,-26903.46221276,0.00024416,2]
[387265291,1758669040263,-181.96340066,0.0002442,2]
[387265293,1758669040272,-275.11,0.00024421,2]
[387265295,1758669040281,-161.90660939,0.00024422,2]
[387265296,1758669040291,-129605.04424821,0.00024428,2]
[387265298,1758669040300,-129605.04424821,0.00024428,2]
[387265300,1758669040310,-172.03993169,0.00024429,2]
[387265302,1758669040319,-129605.04424821,0.00024431,2]
[387265304,1758669040329,-284.0,0.0002444,2]
[387265306,1758669040339,-150.0,0.00024444,2]
[387265308,1758669040349,-150.0,0.00024444,2]
[387265309,1758669040359,-160.81930305,0.00024446,2]
[387265311,1758669040368,-292.24024141,0.0002445,2]
[387265313,1758669040378,-172.03993169,0.00024451,2]
[387265315,1758669040388,-292.24024141,0.00024454,2]
[387265317,1758669040397,-292.24024141,0.00024454,2]
[387265319,1758669040407,-161.90660939,0.00024455,2]
[387265321,1758669040416,-150.0,0.00024457,2]
[387265322,1758669040425,-150.0,0.00024457,2]
[387265324,1758669040435,-500.0,0.00024457,2]
[387265326,1758669040444,-500.0,0.00024457,2]
[387265328,1758669040454,-500.0,0.00024457,2]
[387265330,1758669040463,-1080.0,0.00024457,2]
[387265332,1758669040473,-301.40609842,0.00024457,2]
[387265333,1758669040482,-500.0,0.00024457,2]
[387265335,1758669040492,-500.0,0.00024457,2]
[387265337,1758669040503,-200.0,0.00024457,2]
[387265339,1758669040513,-545.0,0.00024457,2]
[387265341,1758669040522,-500.0,0.00024457,2]
[387265343,1758669040532,-300.0,0.00024457,2]
[387265345,1758669040541,-500.0,0.00024457,2]
[387265347,1758669040550,-696.0,0.00024457,2]
[387265348,1758669040560,-500.0,0.00024457,2]
[387265350,1758669040569,-26903.46221276,0.00024462,2]
[387265352,1758669040579,-284.0,0.00024464,2]
[387265354,1758669040588,-160.81930305,0.00024466,2]
[387265356,1758669040598,-161.90660939,0.00024471,2]
[387265358,1758669040607,-292.24024141,0.00024473,2]
[387265359,1758669040616,-161.90660939,0.00024476,2]
[387265361,1758669040626,-160.81930305,0.00024477,2]
[387265363,1758669040636,-161.90660939,0.0002448,2]
[387265365,1758669040645,-26903.46221276,0.00024483,2]
[387265367,1758669040656,-161.90660939,0.00024487,2]
[387265369,1758669040665,-172.03993169,0.00024488,2]
[387265371,1758669040675,-26903.46221276,0.00024489,2]
[387265373,1758669040685,-129605.04424821,0.0002449,2]
[387265374,1758669040695,-160.81930305,0.00024496,2]
[387265376,1758669040704,-284.0,0.00024499,2]
[387265378,1758669040713,-621.0,0.00024521,2]
[387265379,1758669040723,-150.0,0.00024521,4]
[387265380,1758669040733,-853.39370512,0.00024535,2]
[387265381,1758669040742,-150.93403913,0.00024545,2]
[387265382,1758669040751,-180.65,0.00024547,2]
[387265383,1758669040761,-594.97314648,0.00024557,2]
[387265384,1758669040770,-4197.07839392,0.00024557,2]
[387265385,1758669040779,-169.73829922,0.00024557,2]
[387265386,1758669040789,-161.23326321,0.00024557,2]
[387265387,1758669040798,-815.580513,0.00024593,2]
[387265388,1758669040807,-4197.07839391,0.00024618,2]
[387265389,1758669040817,-180.65,0.00024647,2]
[387265390,1758669040826,-408.10406818,0.00024647,2]
[387265392,1758669040836,-400.0,0.00024657,3]
[387265394,1758669040846,-400.0,0.00024657,3]
[387265396,1758669040855,-400.0,0.00024657,3]
[387265398,1758669040865,-441.32,0.00024657,3]
[387265400,1758669040875,-400.0,0.00024657,3]
[387265402,1758669040884,-400.0,0.00024657,3]
[387265404,1758669040894,-400.0,0.00024657,3]
[387265406,1758669040903,-400.0,0.00024657,3]
[387265408,1758669040913,-400.0,0.00024657,2]
[387265410,1758669040923,-400.0,0.00024657,3]
[387265412,1758669040935,-400.0,0.00024657,3]
[387265414,1758669040945,-300.01315538,0.00024657,3]
[387265416,1758669040954,-400.0,0.00024657,3]
[387265418,1758669040963,-400.0,0.00024657,3]
[387265420,1758669040973,-400.0,0.00024657,3]
[387265422,1758669040982,-400.0,0.00024657,3]
[387265424,1758669040992,-569.5,0.00024657,3]
[387265426,1758669041001,-400.0,0.00024657,3]
[387265427,1758669041011,-400.0,0.00024657,3]
[387265428,1758669041020,-400.0,0.00024657,3]
[387265429,1758669041030,-400.0,0.00024657,3]
[387265430,1758669041039,-400.0,0.00024657,3]
[387265431,1758669041049,-400.0,0.00024657,3]
[387265432,1758669041058,-400.0,0.00024657,3]
[387265433,1758669041068,-400.0,0.00024657,3]
[387265434,1758669041077,-400.0,0.00024657,3]
[387265435,1758669041087,-400.0,0.00024657,3]
[387265436,1758669041096,-411.42,0.00024657,3]
[387265437,1758669041106,-400.0,0.00024657,3]
[387265438,1758669041116,-400.0,0.00024657,3]
[387265439,1758669041125,-531.19,0.00024657,3]
[387265440,1758669041134,-400.0,0.00024657,3]
[387265441,1758669041143,-402.50547299,0.00024657,3]
[387265442,1758669041153,-400.0,0.00024657,3]
[387265443,1758669041162,-487.19,0.00024657,3]
[387265444,1758669041171,-400.0,0.00024657,3]
[387265445,1758669041181,-555.77,0.00024657,3]
[387265446,1758669041190,-461.59,0.00024657,3]
[387265447,1758669041200,-400.0,0.00024657,3]
[387265448,1758669041210,-400.0,0.00024657,3]
[387265450,1758669041219,-477.49,0.00024657,3]
[387265452,1758669041229,-400.0,0.00024657,3]
[387265454,1758669041238,-490.81,0.00024657,3]
[387265456,1758669041248,-400.0,0.00024657,3]
[387265458,1758669041257,-500.0,0.00024657,3]
[387265460,1758669041266,-500.0,0.00024657,3]
[387265462,1758669041276,-500.0,0.00024657,3]
[387265464,1758669041286,-552.52726845,0.00024657,3]
[387265466,1758669041295,-400.0,0.00024657,3]
[387265468,1758669041305,-909.04,0.00024657,3]
[387265470,1758669041314,-400.0,0.00024657,3]
[387265473,1758669041326,-400.0,0.00024657,3]
[387265475,1758669041335,-400.0,0.00024657,3]
[387265477,1758669041345,-400.0,0.00024657,3]
[387265479,1758669041355,-400.0,0.00024657,3]
[387265481,1758669041365,-459.16,0.00024657,3]
[387265483,1758669041374,-733.4,0.00024657,3]
[387265485,1758669041384,-400.0,0.00024657,3]
[387265487,1758669041394,-400.0,0.00024657,3]
[387265489,1758669041403,-400.0,0.00024657,3]
[387265491,1758669041413,-493.69,0.00024657,3]
[387265493,1758669041423,-1480.01,0.00024657,3]
[387265495,1758669041433,-400.0,0.00024657,3]
[387265497,1758669041442,-400.0,0.00024657,3]
[387265499,1758669041452,-400.0,0.00024657,3]
[387265501,1758669041461,-1458.51,0.00024657,3]
[387265503,1758669041471,-400.0,0.00024657,3]
[387265505,1758669041480,-400.0,0.00024657,3]
[387265507,1758669041490,-400.0,0.00024657,3]
[387265509,1758669041499,-400.0,0.00024657,3]
[387265511,1758669041509,-400.0,0.00024657,3]
[387265513,1758669041519,-400.0,0.00024657,3]
[387265515,1758669041528,-400.0,0.00024657,3]
[387265517,1758669041538,-400.0,0.00024657,3]
[387265519,1758669041547,-400.0,0.00024657,3]
[387265521,1758669041557,-675.9,0.00024657,3]
[387265524,1758669041566,-695.88,0.00024657,3]
[387265525,1758669041577,-580.73,0.00024657,3]
[387265528,1758669041587,-400.0,0.00024657,3]
[387265530,1758669041597,-506.27,0.00024657,3]
[387265532,1758669041606,-400.0,0.00024657,3]
[387265534,1758669041616,-400.0,0.00024657,3]
[387265536,1758669041625,-400.0,0.00024657,3]
[387265538,1758669041635,-400.0,0.00024657,3]
[387265540,1758669041645,-400.0,0.00024657,3]
[387265542,1758669041655,-453.75,0.00024657,3]
[387265544,1758669041665,-557.91,0.00024657,3]
[387265546,1758669041674,-400.0,0.00024657,3]
[387265548,1758669041684,-546.4,0.00024657,3]
[387265550,1758669041694,-400.0,0.00024657,3]
[387265552,1758669041703,-400.0,0.00024657,3]
[387265554,1758669041714,-400.0,0.00024657,3]
[387265556,1758669041724,-533.02,0.00024657,3]
[387265558,1758669041733,-445.42,0.00024657,3]
[387265560,1758669041744,-400.0,0.00024657,3]
[387265562,1758669041754,-400.0,0.00024657,3]
[387265564,1758669041764,-513.24,0.00024657,3]
[387265566,1758669041773,-910.43,0.00024657,3]
[387265568,1758669041784,-400.0,0.00024657,3]
[387265570,1758669041794,-400.0,0.00024657,3]
[387265572,1758669041804,-400.0,0.00024657,3]
[387265616,1758669042210,-400.0,0.00024657,3]
[387265618,1758669042220,-400.0,0.00024657,3]
[387265620,1758669042229,-400.0,0.00024657,3]
[387265622,1758669042239,-400.0,0.00024657,3]
[387265624,1758669042249,-402.43,0.00024657,3]
[387265626,1758669042259,-400.0,0.00024657,3]
[387265628,1758669042269,-638.97,0.00024657,3]
[387265630,1758669042279,-400.0,0.00024657,3]
[387265632,1758669042289,-400.0,0.00024657,3]
[387265634,1758669042298,-400.0,0.00024657,3]
[387265636,1758669042308,-400.0,0.00024657,3]
[387265638,1758669042317,-400.0,0.00024657,3]
[387265640,1758669042326,-771.21,0.00024657,3]
[387265642,1758669042336,-740.91,0.00024657,3]
[387265644,1758669042345,-1055.37,0.00024657,3]
[387265646,1758669042356,-508.2,0.00024657,3]
[387265649,1758669042366,-619.52,0.00024657,3]
[387265651,1758669042376,-400.0,0.00024657,3]
[387265652,1758669042385,-518.65,0.00024657,3]
[387265655,1758669042395,-783.26,0.00024657,3]
[387265657,1758669042404,-458.44,0.00024657,3]
[387265658,1758669042414,-400.0,0.00024657,3]
[387265661,1758669042424,-400.0,0.00024657,3]
[387265663,1758669042434,-400.0,0.00024657,3]
[387265664,1758669042446,-953.43,0.00024657,3]
[387265666,1758669042455,-1317.42,0.00024657,3]
[387265668,1758669042465,-400.0,0.00024657,3]
[387265671,1758669042474,-400.0,0.00024657,3]
[387265673,1758669042483,-612.89,0.00024657,3]
[387265675,1758669042493,-500.0,0.00024657,3]
[387265676,1758669042503,-500.0,0.00024657,3]
[387265678,1758669042513,-500.0,0.00024657,3]
[387265681,1758669042522,-500.0,0.00024657,3]
[387265683,1758669042532,-500.0,0.00024657,3]
[387265684,1758669042541,-504.61457005,0.00024657,3]
[387265687,1758669042551,-400.0,0.00024657,3]
[387265688,1758669042561,-400.0,0.00024657,3]
[387265691,1758669042571,-400.0,0.00024657,3]
[387265693,1758669042581,-1085.51,0.00024657,3]
[387265695,1758669042591,-1085.51,0.00024657,3]
[387265696,1758669042600,-400.0,0.00024657,3]
[387265699,1758669042610,-400.0,0.00024657,3]
[387265701,1758669042621,-400.0,0.00024657,3]
[387265703,1758669042630,-300.0,0.00024657,3]
[387265705,1758669042640,-400.0,0.00024657,3]
[387265707,1758669042650,-400.0,0.00024657,3]
[387265709,1758669042660,-400.0,0.00024657,3]
[387265711,1758669042669,-400.0,0.00024657,3]
[387265713,1758669042679,-400.0,0.00024657,3]
[387265715,1758669042688,-400.0,0.00024657,3]
[387265717,1758669042698,-569.05,0.00024657,3]
[387265719,1758669042707,-400.0,0.00024657,3]
[387265721,1758669042717,-400.0,0.00024657,3]
[387265723,1758669042726,-400.0,0.00024657,3]
[387265725,1758669042735,-400.0,0.00024657,3]
[387265727,1758669042745,-400.0,0.00024657,3]
[387265729,1758669042755,-400.0,0.00024657,3]
[387265731,1758669042764,-400.0,0.00024657,3]
[387265733,1758669042773,-400.0,0.00024657,3]
[387265735,1758669042783,-400.0,0.00024657,3]
[387265737,1758669042792,-400.0,0.00024657,3]
[387265739,1758669042801,-400.0,0.00024657,3]
[387265741,1758669042811,-400.0,0.00024657,3]
[387265743,1758669042820,-400.0,0.00024657,3]
[387265745,1758669042830,-400.0,0.00024657,3]
[387265747,1758669042841,-400.0,0.00024657,3]
[387265749,1758669042851,-400.0,0.00024657,3]
[387265751,1758669042860,-1264.93,0.00024657,3]
[387265753,1758669042870,-150.0,0.00024657,2]
[387265755,1758669042879,-406.25009553,0.00024657,3]
[387265757,1758669042889,-400.0,0.00024657,3]
[387265759,1758669042899,-400.0,0.00024657,3]
[387265761,1758669042909,-437.38,0.00024657,3]
[387265763,1758669042919,-280.55353069,0.00024657,3]